fUSD/lending_fUSD_20260404
["ID","MTS","AMOUNT","RATE_DAILY","PERIOD"]
[419717306,1775332305677,-500.0,0.00035945,9]
[419717307,1775332305687,-531.16,0.00035945,9]
[419717308,1775332305697,-500.0,0.00035945,9]
[419717309,1775332305707,-1812.29,0.00035945,9]
[419717310,1775332305716,-500.0,0.00035945,9]
[419717311,1775332305726,-500.0,0.00035945,9]
[419717312,1775332305736,-500.0,0.00035945,9]
[419717313,1775332305747,-1052.58,0.00035945,9]
[419717314,1775332305758,-510.17442819,0.00035945,9]
[419717315,1775332305768,-525.03712665,0.00035945,9]
[419717316,1775332305778,-500.0,0.00035945,9]
[419717317,1775332305788,-500.0,0.00035945,9]
[419717318,1775332305799,-500.0,0.00035945,9]
[419717319,1775332305809,-500.0,0.00035945,9]
[419717320,1775332305820,-503.77,0.00035945,9]
[419717321,1775332305830,-500.0,0.00035945,9]
[419717322,1775332305839,-500.0,0.00035945,9]
[419717323,1775332305848,-500.0,0.00035945,9]
[419717324,1775332305858,-500.0,0.00035945,9]
[419717325,1775332305867,-500.0,0.00035945,9]
[419717326,1775332305876,-500.0,0.00035945,9]
[419717327,1775332305886,-1592.56,0.00035945,9]
[419717328,1775332305896,-206.78387299,0.00035945,9]
[419717329,1775332305905,-500.0,0.00035945,9]
[419717330,1775332305915,-500.0,0.00035945,9]
[419717331,1775332305924,-1622.77,0.00035945,9]
[419717332,1775332305934,-500.0,0.00035945,9]
[419717333,1775332305943,-506.59539794,0.00035945,9]
[419717334,1775332305952,-508.44319675,0.00035945,9]
[419717335,1775332305962,-500.0,0.00035945,9]
[419717336,1775332305971,-500.0,0.00035945,9]
[419717337,1775332305981,-500.0,0.00035945,9]
[419717338,1775332305991,-500.0,0.00035945,9]
[419717339,1775332306000,-500.0,0.00035945,9]
[419717340,1775332306010,-500.0,0.00035945,9]
[419717341,1775332306024,-1201.59,0.00035945,9]
[419717342,1775332306036,-523.4621089,0.00035945,9]
[419717343,1775332306046,-500.0,0.00035945,9]
[419717344,1775332306056,-500.0,0.00035945,9]
[419717345,1775332306066,-500.0,0.00035945,9]
[419717346,1775332306077,-500.0,0.00035945,9]
[419717347,1775332306088,-500.0,0.00035945,9]
[419717348,1775332306099,-500.0,0.00035945,9]
[419717349,1775332306108,-1721.74,0.00035945,9]
[419717350,1775332306118,-500.0,0.00035945,9]
[419717351,1775332306128,-500.0,0.00035945,9]
[419717352,1775332306139,-500.0,0.00035945,9]
[419717353,1775332306148,-500.0,0.00035945,9]
[419717354,1775332306159,-500.0,0.00035945,9]
[419717355,1775332306168,-500.0,0.00035945,9]
[419717356,1775332306178,-500.0,0.00035945,9]
[419717357,1775332306188,-500.0,0.00035945,9]
[419717358,1775332306198,-500.0,0.00035945,9]
[419717359,1775332306209,-179.04217061,0.00035945,9]
[419717360,1775332306219,-516.54557185,0.00035945,9]
[419717361,1775332306230,-530.9,0.00035945,9]
[419717362,1775332306240,-308.20521569,0.00035945,9]
[419717363,1775332306250,-1141.67,0.00035945,9]
[419717364,1775332306260,-523.49,0.00035945,9]
[419717365,1775332306269,-1736.67,0.00035945,9]
[419717366,1775332306279,-500.0,0.00035945,9]
[419717367,1775332306288,-500.0,0.00035945,9]
[419717368,1775332306299,-375.60798138,0.00035945,9]
[419717369,1775332306309,-500.0,0.00035945,9]
[419717370,1775332306319,-500.0,0.00035945,9]
[419717371,1775332306329,-500.0,0.00035945,9]
[419717372,1775332306339,-500.0,0.00035945,9]
[419717373,1775332306348,-502.34491212,0.00035945,9]
[419717374,1775332306357,-500.0,0.00035945,9]
[419717375,1775332306367,-518.60260946,0.00035945,9]
[419717376,1775332306377,-1294.2,0.00035945,9]
[419717377,1775332306387,-500.0,0.00035945,9]
[419717378,1775332306396,-1506.39,0.00035945,9]
[419717379,1775332306405,-500.0,0.00035945,9]
[419717380,1775332306415,-500.0,0.00035945,9]
[419717381,1775332306424,-1626.06,0.00035945,9]
[419717382,1775332306434,-500.0,0.00035945,9]
[419717383,1775332306443,-500.0,0.00035945,9]
[419717384,1775332306453,-500.0,0.00035945,9]
[419717385,1775332306462,-500.0,0.00035945,2]
[419717386,1775332306472,-500.0,0.00035945,9]
[419717387,1775332306482,-505.65755111,0.00035945,9]
[419717388,1775332306491,-500.0,0.00035945,9]
[419717389,1775332306501,-500.0,0.00035945,9]
[419717390,1775332306511,-500.0,0.00035945,9]
[419717391,1775332306520,-500.0,0.00035945,9]
[419717392,1775332306530,-500.0,0.00035945,9]
[419717393,1775332306540,-500.0,0.00035945,9]
[419717394,1775332306549,-500.0,0.00035945,9]
[419717395,1775332306559,-1189.32,0.00035945,9]
[419717396,1775332306568,-500.0,0.00035945,9]
[419717397,1775332306578,-500.0,0.00035945,9]
[419717398,1775332306587,-500.0,0.00035945,9]
[419717399,1775332306596,-500.0,0.00035945,9]
[419717400,1775332306606,-500.0,0.00035945,9]
[419717401,1775332306616,-500.0,0.00035945,9]
[419717402,1775332306626,-500.0,0.00035945,9]
[419717403,1775332306637,-500.0,0.00035945,9]
[419717404,1775332306646,-500.0,0.00035945,9]
[419717405,1775332306656,-500.0,0.00035945,9]
[419717406,1775332306666,-902.85,0.00035945,9]
[419717407,1775332306676,-805.21,0.00035945,9]
[419717408,1775332306685,-500.0,0.00035945,9]
[419717409,1775332306695,-500.0,0.00035945,9]
[419717410,1775332306704,-1403.75,0.00035945,9]
[419717411,1775332306713,-500.0,0.00035945,9]
[419717412,1775332306723,-500.0,0.00035945,9]
[419717413,1775332306733,-519.44214823,0.00035945,9]
[419717414,1775332306744,-500.0,0.00035945,9]
[419717415,1775332306753,-632.53,0.00035945,9]
[419717416,1775332306763,-500.0,0.00035945,9]
[419717417,1775332306772,-500.0,0.00035945,9]
[419717418,1775332306782,-1654.65,0.00035945,9]
[419717419,1775332306791,-1839.4,0.00035945,9]
[419717420,1775332306801,-500.0,0.00035945,9]
[419717421,1775332306812,-500.0,0.00035945,9]
[419717422,1775332306821,-500.0,0.00035945,9]
[419717423,1775332306831,-1294.36,0.00035945,9]
[419717424,1775332306841,-1978.02,0.00035945,9]
[419717425,1775332306851,-500.0,0.00035945,9]
[419717426,1775332306862,-500.0,0.00035945,9]
[419717427,1775332306872,-538.46842249,0.00035945,9]
[419717428,1775332306882,-500.0,0.00035945,9]
[419717429,1775332306893,-500.0,0.00035945,9]
[419717430,1775332306905,-500.0,0.00035945,9]
[419717431,1775332306914,-512.43087606,0.00035945,9]
[419717432,1775332306929,-1570.35,0.00035945,9]
[419717433,1775332306940,-500.0,0.00035945,9]
[419717434,1775332306954,-500.0,0.00035945,9]
[419717435,1775332306963,-500.0,0.00035945,9]
[419717436,1775332306975,-500.0,0.00035945,9]
[419717437,1775332306984,-500.0,0.00035945,9]
[419717438,1775332306993,-1842.63,0.00035945,9]
[419717439,1775332307003,-500.0,0.00035945,9]
[419717440,1775332307013,-980.27,0.00035945,9]
[419717441,1775332307032,-500.0,0.00035945,9]
[419717442,1775332307041,-500.0,0.00035945,9]
[419717443,1775332307051,-500.0,0.00035945,9]
[419717444,1775332307060,-500.0,0.00035945,9]
[419717445,1775332307072,-385.73574222,0.00035945,9]
[419717446,1775332307081,-500.0,0.00035945,9]
[419717447,1775332307100,-500.0,0.00035945,9]
[419717448,1775332307109,-500.0,0.00035945,9]
[419717449,1775332307119,-1063.97,0.00035945,9]
[419717450,1775332307128,-500.0,0.00035945,9]
[419717451,1775332307139,-500.0,0.00035945,9]
[419717452,1775332307149,-577.4,0.00035945,9]
[419717453,1775332307166,-500.0,0.00035945,9]
[419717454,1775332307176,-2266.54,0.00035945,9]
[419717455,1775332307186,-500.0,0.00035945,9]
[419717456,1775332307195,-500.0,0.00035945,9]
[419717457,1775332307205,-846.17,0.00035945,9]
[419717458,1775332307215,-500.0,0.00035945,9]
[419717459,1775332307226,-500.0,0.00035945,9]
[419717460,1775332307236,-1397.44,0.00035945,9]
[419717461,1775332307247,-849.25,0.00035945,9]
[419717462,1775332307259,-500.0,0.00035945,9]
[419717463,1775332307268,-500.0,0.00035945,9]
[419717464,1775332307278,-500.0,0.00035945,9]
[419717465,1775332307288,-500.0,0.00035945,9]
[419717466,1775332307297,-2000.36,0.00035945,9]
[419717467,1775332307307,-500.0,0.00035945,9]
[419717468,1775332307565,-2051.15,0.00035945,9]
[419717469,1775332307578,-1692.83,0.00035945,9]
[419717470,1775332307589,-500.0,0.00035945,9]
[419717471,1775332307600,-500.0,0.00035945,9]
[419717472,1775332307612,-500.0,0.00035945,9]
[419717473,1775332307623,-1768.11,0.00035945,9]
[419717474,1775332307637,-500.0,0.00035945,9]
[419717475,1775332307648,-500.0,0.00035945,9]
[419717476,1775332307663,-213.23487146,0.00035945,9]
[419717477,1775332307675,-500.0,0.00035945,9]
[419717478,1775332307688,-716.38,0.00035945,9]
[419717479,1775332307699,-500.0,0.00035945,9]
[419717480,1775332307709,-848.6,0.00035945,9]
[419717481,1775332307718,-500.0,0.00035945,9]
[419717482,1775332307734,-500.0,0.00035945,9]
[419717483,1775332307750,-769.75,0.00035945,9]
[419717484,1775332307775,-1615.17,0.00035945,9]
[419717485,1775332307788,-500.0,0.00035945,9]
[419717486,1775332307803,-1981.11,0.00035945,9]
[419717487,1775332307816,-1834.55,0.00035945,9]
[419717488,1775332307829,-1767.02,0.00035945,9]
[419717489,1775332307843,-500.0,0.00035945,9]
[419717490,1775332307856,-500.0,0.00035945,9]
[419717491,1775332307871,-1246.19,0.00035945,9]
[419717492,1775332307881,-500.0,0.00035945,9]
[419717493,1775332307894,-500.0,0.00035945,9]
[419717494,1775332307904,-300.51667541,0.00035945,9]
[419717495,1775332307918,-500.0,0.00035945,9]
[419717496,1775332307930,-421.42532917,0.00035945,9]
[419717497,1775332307956,-500.0,0.00035945,9]
[419717498,1775332307968,-500.0,0.00035945,9]
[419717499,1775332307978,-2537.68,0.00035945,9]
[419717500,1775332307988,-500.0,0.00035945,9]
[419717501,1775332307998,-500.0,0.00035945,9]
[419717502,1775332308008,-626.42,0.00035945,9]
[419717503,1775332308017,-500.0,0.00035945,9]
[419717504,1775332308026,-486.4490887,0.00035945,9]
[419717505,1775332308036,-500.0,0.00035945,9]
[419717506,1775332308055,-500.0,0.00035945,9]
[419717507,1775332308076,-500.0,0.00035945,9]
[419717508,1775332308090,-500.0,0.00035945,9]
[419717509,1775332308100,-500.0,0.00035945,9]
[419717510,1775332308111,-1406.25,0.00035945,9]
[419717511,1775332308122,-500.0,0.00035945,9]
[419717512,1775332308132,-500.0,0.00035945,9]
[419717513,1775332308143,-562.39,0.00035945,9]
[419717514,1775332308153,-500.0,0.00035945,9]
[419717515,1775332308165,-500.0,0.00035945,9]
[419717516,1775332308175,-500.0,0.00035945,9]
[419717517,1775332308185,-500.0,0.00035945,9]
[419717518,1775332308195,-500.0,0.00035945,9]
[419717519,1775332308206,-500.0,0.00035945,9]
[419717520,1775332308215,-500.0,0.00035945,9]
[419717521,1775332308224,-500.0,0.00035945,9]
[419717522,1775332308234,-500.0,0.00035945,9]
[419717523,1775332308243,-647.59,0.00035945,9]
[419717524,1775332308253,-2037.62,0.00035945,9]
[419717525,1775332308262,-500.0,0.00035945,9]
[419717526,1775332308271,-500.0,0.00035945,9]
[419717527,1775332308281,-500.0,0.00035945,9]
[419717528,1775332308290,-500.0,0.00035945,9]
[419717529,1775332308299,-500.0,0.00035945,9]
[419717530,1775332308309,-500.0,0.00035945,9]
[419717531,1775332308320,-500.0,0.00035945,9]
[419717532,1775332308331,-500.0,0.00035945,9]
[419717533,1775332308341,-500.0,0.00035945,9]
[419717534,1775332308350,-500.0,0.00035945,9]
[419717535,1775332308360,-500.0,0.00035945,9]
[419717536,1775332308369,-500.0,0.00035945,9]
[419717537,1775332308378,-500.0,0.00035945,9]
[419717538,1775332308388,-500.0,0.00035945,9]
[419717539,1775332308397,-1047.02,0.00035945,9]
[419717540,1775332308407,-500.0,0.00035945,9]
[419717541,1775332308416,-500.0,0.00035945,9]
[419717542,1775332308425,-500.0,0.00035945,9]
[419717543,1775332308435,-500.0,0.00035945,9]
[419717544,1775332308444,-500.0,0.00035945,9]
[419717545,1775332308453,-1248.55,0.00035945,9]
[419717546,1775332308462,-500.0,0.00035945,9]
[419717547,1775332308472,-500.0,0.00035945,9]
[419717548,1775332308481,-1014.84,0.00035945,9]
[419717549,1775332308491,-500.0,0.00035945,9]
[419717550,1775332308499,-500.0,0.00035945,9]
[419717551,1775332308509,-500.0,0.00035945,9]
[419717552,1775332308518,-500.0,0.00035945,9]
[419717553,1775332308528,-355.08007104,0.00035945,9]
[419717554,1775332308537,-500.0,0.00035945,9]
[419717555,1775332308546,-500.0,0.00035945,9]
[419717556,1775332308555,-500.0,0.00035945,9]
[419717557,1775332308565,-503.32335502,0.00035945,9]
[419717558,1775332308574,-500.0,0.00035945,9]
[419717559,1775332308583,-500.0,0.00035945,7]
[419717560,1775332308592,-500.0,0.00035945,9]
[419717561,1775332308601,-500.0,0.00035945,9]
[419717562,1775332308610,-500.0,0.00035945,9]
[419717563,1775332308619,-661.92,0.00035945,9]
[419717564,1775332308628,-500.0,0.00035945,9]
[419717565,1775332308638,-500.0,0.00035945,9]
[419717566,1775332308647,-500.0,0.00035945,7]
[419717567,1775332308656,-500.0,0.00035945,9]
[419717568,1775332308665,-383.81420542,0.00035945,9]
[419717569,1775332308674,-500.0,0.00035945,9]
[419717570,1775332308683,-500.0,0.00035945,9]
[419717571,1775332308692,-500.0,0.00035945,9]
[419717572,1775332308701,-687.29,0.00035945,9]
[419717573,1775332308710,-500.0,0.00035945,9]
[419717574,1775332308719,-875.01,0.00035945,9]
[419717575,1775332308728,-500.0,0.00035945,9]
[419717576,1775332308737,-1276.84,0.00035945,9]
[419717577,1775332308746,-500.0,0.00035945,9]
[419717578,1775332308756,-974.09,0.00035945,9]
[419717579,1775332308766,-500.0,0.00035945,9]
[419717580,1775332308776,-500.0,0.00035945,9]
[419717581,1775332308784,-500.0,0.00035945,9]
[419717582,1775332308793,-500.0,0.00035945,9]
[419717583,1775332308802,-500.0,0.00035945,9]
[419717584,1775332308811,-679.81,0.00035945,9]
[419717585,1775332308820,-500.0,0.00035945,9]
[419717586,1775332308829,-500.0,0.00035945,9]
[419717587,1775332308838,-500.0,0.00035945,9]
[419717588,1775332308848,-500.0,0.00035945,9]
[419717589,1775332308858,-1076.63,0.00035945,9]
[419717590,1775332308868,-1263.13,0.00035945,9]
[419717591,1775332308877,-500.0,0.00035945,9]
[419717592,1775332308897,-626.35,0.00035945,9]
[419717593,1775332308916,-500.0,0.00035945,9]
[419717594,1775332308935,-500.0,0.00035945,9]
[419717595,1775332308955,-3301.23,0.00035945,9]
[419717596,1775332308975,-500.0,0.00035945,9]
[419717597,1775332308993,-500.0,0.00035945,9]
[419717598,1775332309007,-500.0,0.00035945,9]
[419717599,1775332309027,-500.0,0.00035945,9]
[419717600,1775332309046,-700.75,0.00035945,9]
[419717601,1775332309065,-500.0,0.00035945,9]
[419717602,1775332309077,-500.0,0.00035945,9]
[419717603,1775332309095,-500.0,0.00035945,9]
[419717604,1775332309113,-500.0,0.00035945,9]
[419717605,1775332309129,-500.0,0.00035945,9]
[419717606,1775332309143,-500.0,0.00035945,9]
[419717607,1775332309158,-500.0,0.00035945,9]
[419717608,1775332309173,-1391.97,0.00035945,9]
[419717609,1775332309189,-500.0,0.00035945,9]
[419717610,1775332309205,-500.0,0.00035945,9]
[419717611,1775332309220,-990.32,0.00035945,9]
[419717612,1775332309235,-500.0,0.00035945,9]
[419717613,1775332309250,-1489.37,0.00035945,9]
[419717614,1775332309265,-578.85505151,0.00035945,9]
[419717615,1775332309280,-1093.68,0.00035945,9]
[419717616,1775332309295,-500.0,0.00035945,9]
[419717617,1775332309311,-500.0,0.00035945,9]
[419717618,1775332309326,-500.0,0.00035945,9]
[419717619,1775332309341,-500.0,0.00035945,9]
[419717620,1775332309356,-500.0,0.00035945,9]
[419717621,1775332309370,-500.0,0.00035945,9]
[419717622,1775332309385,-345.3020373,0.00035945,9]
[419717623,1775332309401,-1401.96,0.00035945,9]
[419717624,1775332309416,-500.0,0.00035945,9]
[419717625,1775332309432,-501.67354069,0.00035945,9]
[419717626,1775332309448,-500.0,0.00035945,9]
[419717627,1775332309464,-500.0,0.00035945,9]
[419717628,1775332309484,-973.24,0.00035945,9]
[419717629,1775332309499,-518.23,0.00035945,9]
[419717630,1775332309514,-500.0,0.00035945,9]
[419717631,1775332309529,-500.0,0.00035945,9]
[419717632,1775332309545,-545.50413539,0.00035945,9]
[419717633,1775332309559,-500.0,0.00035945,9]
[419717634,1775332309574,-500.0,0.00035945,9]
[419717635,1775332309589,-500.0,0.00035945,9]
[419717636,1775332309605,-1590.93,0.00035945,9]
[419717637,1775332309620,-992.38,0.00035945,9]
[419717638,1775332309635,-500.0,0.00035945,9]
[419717639,1775332309649,-528.07571697,0.00035945,9]
[419717640,1775332309665,-501.78,0.00035945,9]
[419717641,1775332309680,-500.0,0.00035945,9]
[419717642,1775332309695,-500.0,0.00035945,9]
[419717643,1775332309710,-798.54,0.00035945,9]
[419717644,1775332309724,-500.0,0.00035945,9]
[419717645,1775332309740,-500.0,0.00035945,9]
[419717646,1775332309755,-584.31695009,0.00035945,9]
[419717647,1775332309770,-500.0,0.00035945,9]
[419717648,1775332309784,-1197.82,0.00035945,9]
[419717649,1775332309799,-500.0,0.00035945,9]
[419717650,1775332309813,-500.0,0.00035945,9]
[419717651,1775332309828,-500.0,0.00035945,9]
[419717652,1775332309843,-500.0,0.00035945,9]
[419717653,1775332309858,-500.0,0.00035945,9]
[419717654,1775332309873,-500.0,0.00035945,9]
[419717655,1775332309889,-500.0,0.00035945,9]
[419717656,1775332309904,-532.93653336,0.00035945,9]
[419717657,1775332309920,-500.0,0.00035945,9]
[419717658,1775332309934,-160.09266056,0.00035945,9]
[419717659,1775332309949,-2136.99,0.00035945,9]
[419717660,1775332309965,-510.89,0.00035945,9]
[419717661,1775332309980,-500.0,0.00035945,9]
[419717662,1775332309996,-500.0,0.00035945,9]
[419717663,1775332310011,-500.0,0.00035945,9]
[419717664,1775332310027,-500.0,0.00035945,9]
[419717665,1775332310043,-500.0,0.00035945,9]
[419717666,1775332310059,-500.0,0.00035945,9]
[419717667,1775332310076,-391.13960735,0.00035945,9]
[419717668,1775332310092,-941.88,0.00035945,9]
[419717669,1775332310108,-526.82,0.00035945,9]
[419717670,1775332310124,-653.03,0.00035945,9]
[419717671,1775332310140,-500.0,0.00035945,9]
[419717672,1775332310156,-500.0,0.00035945,9]
[419717673,1775332310172,-500.0,0.00035945,9]
[419717674,1775332310187,-500.0,0.00035945,9]
[419717675,1775332310202,-500.0,0.00035945,9]
[419717676,1775332310218,-500.0,0.00035945,9]
[419717677,1775332310234,-500.0,0.00035945,9]
[419717678,1775332310249,-500.0,0.00035945,9]
[419717679,1775332310265,-500.0,0.00035945,9]
[419717680,1775332310281,-500.0,0.00035945,9]
[419717681,1775332310299,-500.0,0.00035945,9]
[419717682,1775332310313,-500.0,0.00035945,9]
[419717683,1775332310323,-500.0,0.00035945,9]
[419717684,1775332310333,-500.0,0.00035945,9]
[419717685,1775332310343,-609.87797619,0.00035945,9]
[419717686,1775332310352,-500.0,0.00035945,9]
[419717687,1775332310362,-500.0,0.00035945,9]
[419717688,1775332310371,-500.0,0.00035945,9]
[419717689,1775332310381,-500.0,0.00035945,9]
[419717690,1775332310390,-500.0,0.00035945,9]
[419717691,1775332310399,-500.0,0.00035945,9]
[419717692,1775332310408,-500.0,0.00035945,9]
[419717693,1775332310418,-500.0,0.00035945,9]
[419717694,1775332310427,-309.3341135,0.00035945,9]
[419717695,1775332310436,-500.0,0.00035945,9]
[419717696,1775332310445,-500.0,0.00035945,9]
[419717697,1775332310455,-500.0,0.00035945,9]
[419717698,1775332310464,-500.0,0.00035945,9]
[419717699,1775332310474,-500.0,0.00035945,9]
[419717700,1775332310484,-500.0,0.00035945,9]
[419717701,1775332310493,-500.0,0.00035945,9]
[419717702,1775332310502,-621.28927613,0.00035945,9]
[419717703,1775332310511,-500.0,0.00035945,9]
[419717704,1775332310521,-500.0,0.00035945,9]
[419717705,1775332310530,-341.42204268,0.00035945,9]
[419717706,1775332310539,-500.0,0.00035945,9]
[419717707,1775332310549,-500.0,0.00035945,9]
[419717708,1775332310559,-500.0,0.00035945,9]
[419717709,1775332310568,-1091.36,0.00035945,9]
[419717710,1775332310577,-500.0,0.00035945,9]
[419717711,1775332310587,-580.95,0.00035945,9]
[419717712,1775332310596,-500.0,0.00035945,9]
[419717713,1775332310606,-505.89666851,0.00035945,9]
[419717714,1775332310615,-500.0,0.00035945,9]
[419717715,1775332311069,-1172.92,0.00035945,9]
[419717716,1775332311099,-1480.28,0.00035945,9]
[419717717,1775332311122,-500.0,0.00035945,9]
[419717718,1775332311132,-500.0,0.00035945,9]
[419717719,1775332311142,-500.0,0.00035945,9]
[419717720,1775332311152,-507.48,0.00035945,9]
[419717721,1775332311161,-500.0,0.00035945,9]
[419717722,1775332311171,-500.0,0.00035945,9]
[419717723,1775332311180,-559.90405681,0.00035945,9]
[419717724,1775332311189,-500.0,0.00035945,9]
[419717725,1775332311198,-500.0,0.00035945,9]
[419717726,1775332311207,-500.0,0.00035945,9]
[419717727,1775332311216,-500.0,0.00035945,9]
[419717728,1775332311226,-500.0,0.00035945,9]
[419717729,1775332311235,-500.0,0.00035945,9]
[419717730,1775332311244,-500.0,0.00035945,9]
[419717731,1775332311253,-500.0,0.00035945,9]
[419717732,1775332311263,-550.70443398,0.00035945,9]
[419717733,1775332311272,-500.0,0.00035945,9]
[419717734,1775332311282,-500.0,0.00035945,9]
[419717735,1775332311291,-500.0,0.00035945,9]
[419717736,1775332311300,-500.0,0.00035945,9]
[419717737,1775332311311,-500.0,0.00035945,9]
[419717738,1775332311320,-500.0,0.00035945,9]
[419717739,1775332311330,-500.0,0.00035945,9]
[419717740,1775332311339,-1326.29,0.00035945,9]
[419717741,1775332311349,-500.0,0.00035945,9]
[419717742,1775332311358,-500.0,0.00035945,9]
[419717743,1775332311367,-773.63,0.00035945,9]
[419717744,1775332311378,-500.0,0.00035945,9]
[419717745,1775332311387,-2320.71,0.00035945,9]
[419717746,1775332311396,-269.02486807,0.00035945,9]
[419717747,1775332311405,-1041.38,0.00035945,9]
[419717748,1775332311414,-500.0,0.00035945,2]
[419717749,1775332311424,-500.0,0.00035945,9]
[419717750,1775332311432,-520.86609898,0.00035945,9]
[419717751,1775332311442,-500.0,0.00035945,9]
[419717752,1775332311451,-3259.05,0.00035945,9]
[419717753,1775332311460,-500.0,0.00035945,9]
[419717754,1775332311468,-500.0,0.00035945,9]
[419717755,1775332311478,-500.0,0.00035945,9]
[419717756,1775332311486,-500.0,0.00035945,9]
[419717757,1775332311495,-500.0,0.00035945,9]
[419717758,1775332311504,-500.0,0.00035945,9]
[419717759,1775332311512,-500.0,0.00035945,9]
[419717760,1775332311521,-215.03807349,0.00035945,9]
[419717761,1775332311530,-500.0,0.00035945,9]
[419717762,1775332311539,-500.0,0.00035945,9]
[419717763,1775332311547,-500.0,0.00035945,9]
[419717764,1775332311556,-500.0,0.00035945,9]
[419717765,1775332311566,-500.0,0.00035945,9]
[419717766,1775332311575,-500.0,0.00035945,9]
[419717767,1775332311584,-736.11,0.00035945,9]
[419717768,1775332311593,-500.0,0.00035945,9]
[419717769,1775332311602,-1125.2,0.00035945,9]
[419717770,1775332311612,-286.4175008,0.00035945,9]
[419717771,1775332311620,-504.34016187,0.00035945,9]
[419717772,1775332311629,-500.0,0.00035945,9]
[419717773,1775332311639,-500.0,0.00035945,9]
[419717774,1775332311648,-500.0,0.00035945,9]
[419717775,1775332311657,-859.34,0.00035945,9]
[419717776,1775332311667,-997.12,0.00035945,9]
[419717777,1775332311680,-500.0,0.00035945,9]
[419717778,1775332311689,-500.0,0.00035945,9]
[419717779,1775332311698,-500.0,0.00035945,9]
[419717780,1775332311707,-500.0,0.00035945,9]
[419717781,1775332311716,-177.89042013,0.00035945,9]
[419717782,1775332311727,-500.0,0.00035945,9]
[419717783,1775332311738,-500.0,0.00035945,9]
[419717784,1775332311748,-16652.63,0.00035945,9]
[419717785,1775332311758,-500.0,0.00035945,9]
[419717786,1775332311770,-500.0,0.00035945,9]
[419717787,1775332311780,-500.0,0.00035945,9]
[419717788,1775332311790,-500.0,0.00035945,9]
[419717789,1775332311799,-632.46110655,0.00035945,9]
[419717790,1775332311809,-618.59,0.00035945,9]
[419717791,1775332311819,-500.0,0.00035945,9]
[419717792,1775332311828,-756.47,0.00035945,9]
[419717793,1775332311838,-675.04,0.00035945,9]
[419717794,1775332311848,-500.0,0.00035945,9]
[419717795,1775332311858,-1113.0,0.00035945,9]
[419717796,1775332311868,-577.41,0.00035945,9]
[419717797,1775332311878,-2112.44,0.00035945,9]
[419717798,1775332311888,-269.20770549,0.00035945,9]
[419717799,1775332311898,-693.75,0.00035945,9]
[419717800,1775332311908,-500.0,0.00035945,9]
[419717801,1775332311918,-500.0,0.00035945,9]
[419717802,1775332311928,-500.0,0.00035945,9]
[419717803,1775332311938,-567.09,0.00035945,9]
[419717804,1775332311948,-2536.68,0.00035945,9]
[419717805,1775332311957,-1380.8,0.00035945,9]